fUSD/lending_fUSD_20240317
["ID","MTS","AMOUNT","RATE_DAILY","PERIOD"]
[319331375,1710665445203,-500.0,0.00015497,2]
[319331376,1710665445213,-500.0,0.00015497,2]
[319331377,1710665445222,-500.0,0.00015497,2]
[319331378,1710665445235,-500.0,0.00015497,2]
[319331379,1710665445244,-500.0,0.00015497,2]
[319331380,1710665445254,-500.09950734,0.00015497,2]
[319331381,1710665445263,-500.0,0.00015497,2]
[319331382,1710665445273,-500.0,0.00015497,2]
[319331383,1710665445283,-500.0,0.00015497,2]
[319331384,1710665445292,-500.0,0.00015497,2]
[319331385,1710665445301,-500.0,0.00015497,2]
[319331386,1710665445311,-500.0,0.00015497,2]
[319331387,1710665445321,-422.89267773,0.00015497,2]
[319331388,1710665445331,-500.0,0.00015497,2]
[319331389,1710665445342,-181.66171653,0.00015497,2]
[319331390,1710665445353,-500.0,0.00015497,2]
[319331391,1710665445362,-500.0,0.00015497,2]
[319331392,1710665445371,-500.0,0.00015497,2]
[319331393,1710665445381,-500.0,0.00015497,2]
[319331394,1710665445390,-500.0,0.00015497,2]
[319331395,1710665445400,-500.0,0.00015497,2]
[319331396,1710665445409,-500.0,0.00015497,2]
[319331397,1710665445422,-500.0,0.00015497,2]
[319331398,1710665445431,-500.0,0.00015497,2]
[319331399,1710665445441,-500.0,0.00015497,2]
[319331400,1710665445451,-500.0,0.00015497,2]
[319331401,1710665445460,-500.0,0.00015497,2]
[319331402,1710665445469,-296.07298482,0.00015497,2]
[319331403,1710665445478,-500.0,0.00015497,2]
[319331404,1710665445487,-500.0,0.00015497,2]
[319331405,1710665445497,-500.0,0.00015497,2]
[319331406,1710665445507,-500.0,0.00015497,2]
[319331407,1710665445516,-500.0,0.00015497,2]
[319331408,1710665445527,-500.0,0.00015497,2]
[319331409,1710665445537,-500.0,0.00015497,2]
[319331410,1710665445546,-482.73,0.00015497,2]
[319331411,1710665445556,-500.0,0.00015497,2]
[319331412,1710665445565,-500.0,0.00015497,2]
[319331413,1710665445575,-500.0,0.00015497,2]
[319331414,1710665445585,-500.0,0.00015497,2]
[319331415,1710665445595,-617.53,0.00015497,2]
[319331416,1710665445604,-500.0,0.00015497,2]
[319331417,1710665445614,-511.25121867,0.00015497,2]
[319331418,1710665445624,-500.0,0.00015497,2]
[319331419,1710665445634,-158.84,0.00015497,2]
[319331420,1710665445643,-500.0,0.00015497,2]
[319331421,1710665445653,-243.86795563,0.00015497,2]
[319331422,1710665445663,-500.0,0.00015497,2]
[319331424,1710665445675,-580.40507027,0.00015497,2]
[319331426,1710665445684,-500.0,0.00015497,2]
[319331428,1710665445694,-500.0,0.00015497,2]
[319331430,1710665445705,-500.0,0.00015497,2]
[319331432,1710665445715,-500.0,0.00015497,2]
[319331434,1710665445725,-500.0,0.00015497,2]
[319331435,1710665445735,-500.0,0.00015497,2]
[319331437,1710665445745,-500.0,0.00015497,2]
[319331439,1710665445755,-500.0,0.00015497,2]
[319331440,1710665445765,-500.0,0.00015497,2]
[319331441,1710665445775,-413.6281336,0.00015497,2]
[319331442,1710665445785,-500.0,0.00015497,2]
[319331443,1710665445795,-500.0,0.00015497,2]
[319331444,1710665445804,-500.0,0.00015497,2]
[319331445,1710665445814,-500.0,0.00015497,2]
[319331447,1710665445824,-500.0,0.00015497,2]
[319331448,1710665445833,-500.0,0.00015497,2]
[319331449,1710665445843,-500.0,0.00015497,2]
[319331450,1710665445852,-500.0,0.00015497,2]
[319331451,1710665445863,-500.0,0.00015497,2]
[319331452,1710665445873,-500.0,0.00015497,2]
[319331453,1710665445882,-500.0,0.00015497,2]
[319331454,1710665445893,-500.0,0.00015497,2]
[319331455,1710665445902,-500.0,0.00015497,2]
[319331456,1710665445912,-500.0,0.00015497,2]
[319331457,1710665445924,-500.0,0.00015497,2]
[319331458,1710665445933,-500.0,0.00015497,2]
[319331459,1710665445943,-500.0,0.00015497,2]
[319331460,1710665445952,-500.0,0.00015497,2]
[319331461,1710665445962,-500.0,0.00015497,2]
[319331462,1710665445971,-585.25,0.00015497,2]
[319331463,1710665445981,-585.25,0.00015497,2]
[319331464,1710665445992,-585.25,0.00015497,2]
[319331465,1710665446001,-585.25,0.00015497,2]
[319331466,1710665446012,-585.25,0.00015497,2]
[319331467,1710665446026,-585.25,0.00015497,2]
[319331468,1710665446036,-500.0,0.00015497,2]
[319331469,1710665446045,-500.0,0.00015497,2]
[319331470,1710665446055,-500.0,0.00015497,2]
[319331471,1710665446066,-500.0,0.00015497,2]
[319331472,1710665446076,-504.0,0.00015497,2]
[319331473,1710665446087,-500.0,0.00015497,2]
[319331474,1710665446097,-500.0,0.00015497,2]
[319331475,1710665446107,-500.0,0.00015497,2]
[319331476,1710665446117,-500.0,0.00015497,2]
[319331477,1710665446126,-257.74480611,0.00015497,2]
[319331478,1710665446136,-500.0,0.00015497,2]
[319331479,1710665446146,-500.0,0.00015497,2]
[319331480,1710665446155,-500.0,0.00015497,2]
[319331481,1710665446167,-500.0,0.00015497,2]
[319331482,1710665446176,-500.0,0.00015497,2]
[319331483,1710665446187,-500.0,0.00015497,2]
[319331484,1710665446196,-500.0,0.00015497,2]
[319331485,1710665446205,-500.0,0.00015497,2]
[319331486,1710665446215,-500.0,0.00015497,2]
[319331487,1710665446224,-500.0,0.00015497,2]
[319331488,1710665446234,-500.0,0.00015497,2]
[319331489,1710665446244,-564.16,0.00015497,2]
[319331490,1710665446254,-500.0,0.00015497,2]
[319331491,1710665446263,-500.0,0.00015497,2]
[319331492,1710665446273,-500.0,0.00015497,2]
[319331493,1710665446282,-500.0,0.00015497,2]
[319331494,1710665446292,-500.0,0.00015497,2]
[319331495,1710665446301,-500.0,0.00015497,2]
[319331496,1710665446311,-500.0,0.00015497,2]
[319331497,1710665446320,-500.0,0.00015497,2]
[319331498,1710665446329,-500.0,0.00015497,2]
[319331499,1710665446340,-500.0,0.00015497,2]
[319331500,1710665446349,-500.0,0.00015497,2]
[319331501,1710665446359,-500.0,0.00015497,2]
[319331502,1710665446368,-298.56,0.00015497,2]
[319331503,1710665446377,-500.0,0.00015497,2]
[319331504,1710665446387,-500.0,0.00015497,2]
[319331505,1710665446396,-500.0,0.00015497,2]
[319331506,1710665446638,-500.0,0.00015497,2]
[319331507,1710665446650,-500.0,0.00015497,2]
[319331508,1710665446660,-500.0,0.00015497,2]
[319331509,1710665446673,-500.0,0.00015497,2]
[319331510,1710665446683,-500.0,0.00015497,2]
[319331511,1710665446694,-500.0,0.00015497,2]
[319331512,1710665446703,-500.0,0.00015497,2]
[319331513,1710665446713,-500.0,0.00015497,2]
[319331514,1710665446722,-500.0,0.00015497,2]
[319331515,1710665446733,-500.0,0.00015497,2]
[319331516,1710665446743,-500.0,0.00015497,2]
[319331517,1710665446753,-500.0,0.00015497,2]
[319331518,1710665446763,-500.0,0.00015497,2]
[319331519,1710665446773,-500.0,0.00015497,2]
[319331520,1710665446782,-500.0,0.00015497,2]
[319331521,1710665446792,-500.0,0.00015497,2]
[319331522,1710665446803,-361.06251957,0.00015497,2]
[319331523,1710665446813,-500.0,0.00015497,2]
[319331524,1710665446823,-500.0,0.00015497,2]
[319331525,1710665446833,-237.0617,0.00015497,2]
[319331526,1710665446843,-500.0,0.00015497,2]
[319331527,1710665446852,-500.0,0.00015497,2]
[319331528,1710665446862,-500.0,0.00015497,2]
[319331529,1710665446871,-500.0,0.00015497,2]
[319331530,1710665446881,-500.0,0.00015497,2]
[319331531,1710665446890,-500.0,0.00015497,2]
[319331532,1710665446899,-544.71999999,0.00015497,2]
[319331533,1710665446910,-500.0,0.00015497,2]
[319331534,1710665446921,-500.0,0.00015497,2]
[319331535,1710665446930,-500.0,0.00015497,2]
[319331536,1710665446939,-500.0,0.00015497,2]
[319331537,1710665446948,-500.0,0.00015497,2]
[319331538,1710665446957,-500.0,0.00015497,2]
[319331539,1710665446966,-500.0,0.00015497,2]
[319331540,1710665446974,-500.0,0.00015497,2]
[319331541,1710665446984,-500.0,0.00015497,2]
[319331542,1710665446993,-500.0,0.00015497,2]
[319331543,1710665447002,-500.0,0.00015497,2]
[319331544,1710665447011,-267.49405565,0.00015497,2]
[319331545,1710665447024,-500.0,0.00015497,2]
[319331546,1710665447033,-500.0,0.00015497,2]
[319331547,1710665447042,-500.0,0.00015497,2]
[319331548,1710665447051,-500.0,0.00015497,2]
[319331549,1710665447061,-500.0,0.00015497,2]
[319331550,1710665447070,-412.16,0.00015497,2]
[319331551,1710665447080,-423.60025799,0.00015497,2]
[319331552,1710665447089,-500.0,0.00015497,2]
[319331553,1710665447099,-500.0,0.00015497,2]
[319331554,1710665447110,-500.0,0.00015497,2]
[319331555,1710665447119,-592.44,0.00015497,2]
[319331556,1710665447128,-500.0,0.00015497,2]
[319331557,1710665447137,-500.0,0.00015497,2]
[319331558,1710665447147,-500.0,0.00015497,2]
[319331559,1710665447156,-500.0,0.00015497,2]
[319331560,1710665447167,-361.08378176,0.00015498,2]
[319331561,1710665447177,-4300.76140114,0.00015498,2]
[319331562,1710665447186,-2635.48385418,0.00015498,2]
[319331563,1710665447196,-727.73439411,0.00015498,2]
[319331564,1710665447205,-628.90648861,0.00015498,2]
[319331565,1710665447214,-703.7365253,0.00015498,2]
[319331566,1710665447224,-155.0,0.00015498,2]
[319331567,1710665447234,-3044.5739065,0.00015498,2]
[319331568,1710665447243,-272.88916697,0.00015498,2]
[319331569,1710665447252,-164.83401031,0.00015498,2]
[319331570,1710665447261,-500.0,0.00015498,2]
[319331571,1710665447270,-500.0,0.00015498,2]
[319331572,1710665447279,-500.0,0.00015498,2]
[319331573,1710665447288,-500.0,0.00015498,2]
[319331574,1710665447297,-500.0,0.00015498,2]
[319331575,1710665447307,-500.0,0.00015498,2]
[319331576,1710665447316,-500.0,0.00015498,2]
[319331577,1710665447326,-500.0,0.00015498,2]
[319331578,1710665447335,-500.0,0.00015498,2]
[319331579,1710665447344,-500.0,0.00015498,2]
[319331580,1710665447353,-190.52496553,0.00015498,2]
[319331581,1710665447362,-235.0,0.00015498,2]
[319331582,1710665447372,-500.0,0.00015498,2]
[319331583,1710665447380,-500.0,0.00015498,2]
[319331584,1710665447390,-523.22742654,0.00015498,2]
[319331585,1710665447399,-500.0,0.00015499,2]
[319331586,1710665447408,-500.0,0.00015499,2]
[319331587,1710665447417,-383.65889724,0.00015499,2]
[319331589,1710665447427,-500.0,0.00015499,2]
[319331591,1710665447436,-500.0,0.00015499,2]
[319331592,1710665447445,-500.0,0.00015499,2]
[319331593,1710665447454,-500.0,0.00015499,2]
[319331594,1710665447463,-500.0,0.00015499,2]
[319331595,1710665447472,-500.0,0.00015499,2]
[319331596,1710665447481,-500.0,0.00015499,2]
[319331597,1710665447490,-500.0,0.00015499,2]
[319331598,1710665447499,-500.0,0.00015499,2]
[319331599,1710665447509,-500.0,0.00015499,2]
[319331600,1710665447518,-500.0,0.00015499,2]
[319331601,1710665447527,-457.01614193,0.00015499,2]
[319331602,1710665447536,-445.15286284,0.00015499,2]
[319331603,1710665447545,-499.36,0.00015499,2]
[319331604,1710665447554,-500.0,0.00015499,2]
[319331605,1710665447563,-500.0,0.00015499,2]
[319331606,1710665447572,-585.25,0.00015499,2]
[319331607,1710665447582,-585.25,0.00015499,2]
[319331608,1710665447591,-150.01,0.00015499,2]
[319331609,1710665447600,-5002.53230386,0.00015499,2]
[319331610,1710665447609,-500.0,0.00015499,2]
[319331611,1710665447619,-500.0,0.00015499,2]
[319331612,1710665447629,-500.0,0.00015499,2]
[319331613,1710665447638,-500.0,0.00015499,2]
[319331614,1710665447648,-500.0,0.00015499,2]
[319331615,1710665447657,-500.0,0.00015499,2]
[319331616,1710665447668,-500.0,0.00015499,2]
[319331617,1710665447677,-500.0,0.00015499,2]
[319331618,1710665447686,-500.0,0.00015499,2]
[319331619,1710665447696,-500.0,0.00015499,2]
[319331620,1710665447706,-500.0,0.00015499,2]
[319331621,1710665447715,-500.0,0.00015499,2]
[319331622,1710665447724,-500.0,0.00015499,2]
[319331623,1710665447733,-500.0,0.00015499,2]
[319331624,1710665447743,-500.0,0.00015499,2]
[319331625,1710665447752,-500.0,0.00015499,2]
[319331626,1710665447762,-500.0,0.00015499,2]
[319331627,1710665447771,-500.0,0.00015499,2]
[319331628,1710665447781,-500.0,0.00015499,2]
[319331629,1710665447790,-222.61559741,0.00015499,2]
[319331630,1710665447799,-500.0,0.00015499,2]
[319331631,1710665447809,-500.0,0.00015499,2]
[319331632,1710665447818,-500.0,0.00015499,2]
[319331633,1710665447828,-500.0,0.00015499,2]
[319331634,1710665447838,-500.0,0.00015499,2]
[319331635,1710665447848,-560.80727367,0.00015499,2]
[319331636,1710665447857,-500.0,0.00015499,2]
[319331637,1710665447867,-500.0,0.00015499,2]
[319331638,1710665447877,-500.0,0.00015499,2]
[319331639,1710665447886,-500.0,0.00015499,2]
[319331640,1710665447896,-500.0,0.00015499,2]
[319331641,1710665447905,-500.0,0.00015499,2]
[319331642,1710665447914,-584.44,0.00015499,2]
[319331643,1710665447925,-584.44,0.00015499,2]
[319331644,1710665447934,-586.57,0.00015499,2]
[319331645,1710665447944,-586.57,0.00015499,2]
[319331646,1710665447954,-584.44,0.00015499,2]
[319331647,1710665447963,-586.57,0.00015499,2]
[319331648,1710665447972,-500.0,0.00015499,2]
[319331649,1710665447982,-500.0,0.00015499,2]
[319331650,1710665447991,-500.0,0.00015499,2]
[319331651,1710665448001,-135774.99687444,0.000155,2]
[319331652,1710665448036,-584.47770338,0.00015249,2]
[319331653,1710665448045,-105242.1391849,0.000155,2]
[319331654,1710665448079,-500.0,0.00015397,2]
[319331655,1710665448088,-6800.0,0.000155,2]
[319331656,1710665448111,-87486.86394066,0.000155,2]
[319331657,1710665448120,-1000.0,0.000155,2]
[319331658,1710665448130,-151.0,0.000155,2]
[319331659,1710665448139,-500.0,0.000155,2]
[319331660,1710665448148,-500.0,0.000155,2]
[319331661,1710665448158,-151.0,0.000155,2]
[319331662,1710665448168,-500.0,0.000155,2]
[319331663,1710665448177,-500.0,0.000155,2]
[319331664,1710665448186,-151.0,0.000155,2]
[319331665,1710665448195,-500.0,0.000155,2]
[319331666,1710665448204,-500.0,0.000155,2]
[319331667,1710665448213,-151.0,0.000155,2]
[319331668,1710665448222,-500.0,0.000155,2]
[319331669,1710665448231,-151.0,0.000155,2]
[319331670,1710665448241,-761.0,0.000155,2]
[319331671,1710665448250,-500.0,0.000155,2]
[319331672,1710665448259,-151.0,0.000155,2]
[319331673,1710665448268,-500.0,0.000155,2]
[319331674,1710665448277,-500.0,0.000155,2]
[319331675,1710665448286,-77042.45830534,0.000155,2]
[319331676,1710665448298,-10527.1172,0.000155,2]
[319331677,1710665448309,-5741.00237352,0.000155,2]
[319331678,1710665448545,-164.2629808,0.00015249,2]
[319331679,1710665448555,-393.33980101,0.00015249,2]
[319331680,1710665448565,-451.16891836,0.00015249,2]
[319331681,1710665448574,-337.8486417,0.00015249,2]
[319331682,1710665448584,-500.0,0.00015342,2]
[319331683,1710665448593,-647.08933675,0.00015342,2]
[319331684,1710665448603,-500.0,0.00015397,2]
[319331685,1710665448613,-500.0,0.00015397,2]
[319331686,1710665448623,-500.0,0.00015397,2]
[319331687,1710665448632,-500.0,0.00015397,2]
[319331688,1710665448641,-38176.43608974,0.000155,2]
[319331689,1710665448653,-626.86484445,0.000155,2]
[319331690,1710665448673,-1941.34813149,0.00015249,2]
[319331691,1710665448684,-112.13581915,0.00015249,2]
[319331692,1710665448693,-6505.85973371,0.000155,2]
[319331693,1710665448705,-317.70411316,0.000155,2]
[319331694,1710665448720,-767.16638275,0.000155,2]
[319331695,1710665448744,-500.0,0.00015496,2]
[319331696,1710665448754,-6507.52786068,0.000155,2]
[319331697,1710665448765,-5274.00232352,0.000155,2]
[319331698,1710665448777,-759.08272986,0.000155,2]
[319331699,1710665448788,-6632.55108349,0.000155,2]
[319331700,1710665448799,-279.59959736,0.000155,2]
[319331701,1710665454370,-252.94782879,0.00015249,2]
[319331702,1710665454379,-169.76,0.00015499,2]
[319331703,1710665454388,-14750.41479607,0.000155,2]
[319331704,1710665454584,-378.79104645,0.000155,2]
[319331705,1710665454597,-1784.8746892,0.000155,2]
[319331706,1710665454616,-73928.5468307,0.000155,2]
[319331707,1710665454628,-1131.90224316,0.000155,2]
[319331708,1710665454638,-1155.0,0.000155,2]
[319331709,1710665454648,-155.0,0.000155,2]
[319331710,1710665454659,-14615.01,0.000155,2]
[319331711,1710665454668,-1400.0,0.000155,2]
[319331712,1710665454680,-840.1791245,0.000155,2]
[319331713,1710665454690,-524.7576876,0.000155,2]
[319331714,1710665454699,-200.2281197,0.000155,2]
[319331715,1710665454708,-3000.0,0.000155,2]
[319331716,1710665454717,-276.0,0.000155,2]
[319331717,1710665454726,-600.0,0.000155,2]
[319331718,1710665454736,-922.44,0.00015507,2]
[319331719,1710665454745,-922.44,0.00015507,2]
[319331720,1710665454755,-922.44,0.00015507,2]
[319331721,1710665454765,-408.41,0.00015507,2]
[319331722,1710665454775,-922.44,0.00015507,2]
[319331723,1710665454785,-922.44,0.00015507,2]
[319331724,1710665454796,-408.41,0.00015507,2]
[319331725,1710665454805,-1840.12,0.00015507,2]
[319331726,1710665454815,-408.41,0.00015507,2]
[319331727,1710665454825,-408.41,0.00015507,2]
[319331728,1710665454834,-408.41,0.00015507,2]
[319331729,1710665454843,-575.1,0.00015507,2]
[319331730,1710665454853,-414.91,0.00015507,2]
[319331731,1710665454863,-1031.66,0.00015507,2]
[319331732,1710665454873,-338.75,0.00015507,2]
[319331733,1710665454882,-414.91,0.00015507,2]
[319331734,1710665454892,-150.0,0.00015507,2]
[319331735,1710665454901,-321.69,0.00015507,2]
[319331736,1710665454911,-150.0,0.00015507,2]
[319331737,1710665454920,-150.0,0.00015507,2]
[319331738,1710665454932,-736.55,0.00015507,2]
[319331739,1710665454942,-150.86,0.00015507,2]
[319331740,1710665454950,-413.98,0.00015507,2]
[319331741,1710665454960,-1407.0,0.00015507,2]
[319331742,1710665454970,-191.910366,0.0001551,2]
[319331743,1710665454979,-163.445873,0.0001551,2]
[319331744,1710665454988,-3533.824213,0.0001551,2]
[319331745,1710665454999,-150.702625,0.0001551,2]
[319331746,1710665455011,-2303.479246,0.0001551,2]
[319331747,1710665455020,-24417.578041,0.0001551,2]
[319331748,1710665455030,-523.798027,0.0001551,2]
[319331749,1710665455041,-604.739296,0.0001551,2]
[319331750,1710665455050,-9586.845885,0.0001551,2]
[319331751,1710665455060,-686.856883,0.0001551,2]
[319331752,1710665455069,-704.463866,0.0001551,2]
[319331753,1710665455083,-493.433425,0.0001551,2]
[319331754,1710665455093,-500.0,0.00015516,2]
[319331755,1710665455102,-340.447197,0.00015517,2]
[319331756,1710665455112,-195.72284,0.00015517,2]
[319331757,1710665455121,-599.614978,0.00015517,2]
[319331758,1710665455131,-163.183865,0.00015517,2]
[319331759,1710665455140,-198.37101,0.00015517,2]
[319331760,1710665455149,-290.343158,0.00015517,2]
[319331761,1710665455160,-181.464475,0.00015517,2]
[319331762,1710665455169,-165.173929,0.00015517,2]
[319331763,1710665455181,-203.339889,0.00015517,2]
[319331764,1710665455190,-508.066091,0.00015517,2]
[319331765,1710665455200,-186.512789,0.00015517,2]
[319331766,1710665455210,-154.907369,0.00015517,2]
[319331767,1710665455220,-166.666132,0.00015517,2]
[319331768,1710665455230,-166.389122,0.00015517,2]
[319331769,1710665455240,-155.427324,0.00015517,2]
[319331770,1710665455249,-1000.0,0.00015616,2]
[319331771,1710665455258,-1000.0,0.00015616,2]
[319331772,1710665455267,-1000.0,0.00015616,2]
[319331773,1710665455277,-1000.0,0.00015616,2]
[319331774,1710665455287,-1000.0,0.00015616,2]
[319331775,1710665455296,-1000.0,0.00015616,2]
[319331776,1710665455306,-1000.0,0.00015616,2]
[319331777,1710665455315,-1000.0,0.00015616,2]
[319331778,1710665455324,-1000.0,0.00015616,2]
[319331779,1710665455334,-1000.0,0.00015616,2]
[319331780,1710665455343,-1000.0,0.00015616,2]
[319331781,1710665455352,-1000.0,0.00015616,2]
[319331782,1710665455362,-1000.0,0.00015616,2]
[319331783,1710665455371,-1000.0,0.00015616,2]
[319331784,1710665455380,-1000.0,0.00015616,2]
[319331785,1710665455390,-1000.0,0.00015616,2]
[319331786,1710665455399,-1000.0,0.00015616,2]
[319331787,1710665455409,-1000.0,0.00015616,2]
[319331788,1710665455417,-1000.0,0.00015616,2]
[319331789,1710665455428,-1000.0,0.00015616,2]
[319331790,1710665455438,-1000.0,0.00015616,2]
[319331791,1710665455447,-1000.0,0.00015616,2]
[319331792,1710665455457,-1000.0,0.00015616,2]
[319331793,1710665455466,-1000.0,0.00015616,2]
[319331794,1710665455475,-1000.0,0.00015616,2]
[319331795,1710665455484,-1000.0,0.00015616,2]
[319331796,1710665455493,-1000.0,0.00015616,2]
[319331797,1710665455502,-1000.0,0.00015616,2]
[319331798,1710665455511,-1000.0,0.00015616,2]
[319331799,1710665455520,-1000.0,0.00015616,2]
[319331800,1710665455530,-1000.0,0.00015616,2]
[319331801,1710665455539,-1000.0,0.00015616,2]
[319331802,1710665455549,-1000.0,0.00015616,2]
[319331803,1710665455559,-1000.0,0.00015616,2]
[319331804,1710665455568,-1000.0,0.00015616,2]
[319331805,1710665455578,-1000.0,0.00015616,2]
[319331806,1710665455587,-1000.0,0.00015616,2]
[319331807,1710665455596,-1000.0,0.00015616,2]
[319331808,1710665455606,-1000.0,0.00015616,2]
[319331809,1710665455615,-1000.0,0.00015616,2]
[319331810,1710665455625,-1000.0,0.00015616,2]
[319331811,1710665455634,-1000.0,0.00015616,2]
[319331812,1710665455644,-1000.0,0.00015616,2]
[319331813,1710665455654,-1000.0,0.00015616,2]
[319331814,1710665455663,-1000.0,0.00015616,2]
[319331815,1710665455674,-1000.0,0.00015616,2]
[319331816,1710665455685,-1000.0,0.00015616,2]
[319331817,1710665455696,-1000.0,0.00015616,2]
[319331818,1710665455706,-1000.0,0.00015616,2]
[319331819,1710665455716,-1000.0,0.00015616,2]
[319331820,1710665455727,-1507.771692,0.00015694,2]
[319331821,1710665455738,-301.36,0.000157,2]
[319331822,1710665455748,-167.52,0.00015831,2]
[319331823,1710665455758,-166.74,0.00015831,2]
[319331824,1710665455768,-210.0,0.0001586,2]
[319331825,1710665455778,-288.0,0.0001586,2]
[319331826,1710665455787,-535.0,0.0001586,2]
[319331827,1710665455797,-400.91219926,0.00015892,2]
[319331828,1710665455807,-2000.0,0.00015973,2]
[319331829,1710665455816,-1027.0,0.00015999,2]
[319331830,1710665455826,-500.0,0.00015999,2]
[319331831,1710665455835,-585.25,0.00015999,2]
[319331832,1710665455845,-500.0,0.00015999,2]
[319331833,1710665455854,-500.0,0.00015999,2]
[319331834,1710665455864,-500.0,0.00015999,2]
[319331835,1710665455873,-500.0,0.00015999,2]
[319331836,1710665455883,-500.0,0.00015999,2]
[319331837,1710665455892,-500.0,0.00015999,2]
[319331838,1710665455902,-500.0,0.00015999,2]
[319331839,1710665455913,-584.44,0.00015999,2]
[319331840,1710665455926,-586.57,0.00015999,2]
[319331841,1710665455935,-500.0,0.00015999,2]
[319331842,1710665455945,-5100.0,0.00015999,2]
[319331843,1710665455954,-1021.0,0.00015999,2]
[319331844,1710665455963,-3772.61349419,0.00016,2]
[319331845,1710665455972,-177.34,0.00016,2]
[319331846,1710665455982,-250.0,0.00016,2]
[319331847,1710665455992,-1003.59,0.00016,2]
[319331848,1710665456002,-863.61728541,0.00016,6]
[319331849,1710665456012,-2222.35077954,0.00016,2]
[319331850,1710665456024,-10981.24891656,0.00016,5]
[319331851,1710665456034,-10981.24891656,0.00016,5]
[319331852,1710665456043,-10981.24891656,0.00016,5]
[319331853,1710665456052,-10981.24891656,0.00016,5]
[319331854,1710665456063,-10981.24891656,0.00016,5]
[319331855,1710665456072,-10981.24891656,0.00016,5]
[319331856,1710665456081,-10981.24891656,0.00016,5]
[319331857,1710665456090,-10981.24891656,0.00016,5]
[319331858,1710665456100,-10981.24891656,0.00016,5]
[319331859,1710665456109,-10981.24791656,0.00016,5]
[319331860,1710665456119,-500.0,0.00016,2]
[319331861,1710665456128,-500.0,0.00016,2]
[319331862,1710665456137,-504.36,0.00016,2]
[319331863,1710665456146,-500.0,0.00016,2]
[319331864,1710665456155,-500.0,0.00016,2]
[319331865,1710665456164,-500.0,0.00016,2]
[319331866,1710665456175,-500.0,0.00016,2]
[319331867,1710665456184,-500.0,0.00016,2]
[319331868,1710665456193,-500.0,0.00016,2]
[319331869,1710665456203,-500.0,0.00016,2]
[319331870,1710665456212,-500.0,0.00016,2]
[319331871,1710665456223,-500.0,0.00016,2]
[319331872,1710665456233,-500.0,0.00016,2]
[319331873,1710665456243,-500.0,0.00016,2]
[319331874,1710665456430,-500.0,0.00016,2]
[319331875,1710665456440,-287.031231,0.00016,2]
[319331876,1710665456450,-151.0,0.00016,2]
[319331877,1710665456460,-500.0,0.00016,2]
[319331878,1710665456469,-500.0,0.00016,2]
[319331879,1710665456478,-152.452362,0.00016,2]
[319331880,1710665456488,-157.940016,0.00016,2]
[319331881,1710665456498,-246.395504,0.00016,2]
[319331882,1710665456507,-157.940016,0.00016,2]
[319331883,1710665456517,-199.744382,0.00016,2]
[319331884,1710665456526,-199.744382,0.00016,2]
[319331885,1710665456536,-385.31,0.00016111,2]